fUSD/lending_fUSD_20260527
["ID","MTS","AMOUNT","RATE_DAILY","PERIOD"]
[423127314,1779870645000,-500.0,0.00036447,2]
[423127313,1779870645000,-243.854168,0.00036447,7]
[423127316,1779870645000,-500.0,0.00036447,2]
[423127320,1779870645000,-500.0,0.00036447,2]
[423127312,1779870645000,-500.0,0.00036447,2]
[423127328,1779870645000,-500.0,0.00036447,2]
[423127339,1779870645000,-500.0,0.00036447,2]
[423127322,1779870645000,-500.0,0.00036447,2]
[423127329,1779870645000,-500.0,0.00036447,2]
[423127327,1779870645000,-500.0,0.00036447,2]
[423127326,1779870645000,-500.0,0.00036447,2]
[423127325,1779870645000,-500.0,0.00036447,2]
[423127324,1779870645000,-243.854168,0.00036447,7]
[423127318,1779870645000,-500.0,0.00036447,2]
[423127321,1779870645000,-500.0,0.00036447,2]
[423127317,1779870645000,-500.0,0.00036447,2]
[423127319,1779870645000,-243.854168,0.00036447,7]
[423127323,1779870645000,-500.0,0.00036447,2]
[423127397,1779870646000,-500.0,0.00036499,120]
[423127412,1779870646000,-45689.3937494,0.000365,2]
[423127411,1779870646000,-151.652701,0.000365,7]
[423127402,1779870646000,-500.0,0.00036499,120]
[423127393,1779870646000,-255.127716,0.00036447,7]
[423127400,1779870646000,-500.0,0.00036499,7]
[423127395,1779870646000,-1000.0,0.0003647,2]
[423127396,1779870646000,-500.0,0.00036499,120]
[423127394,1779870646000,-151.0,0.00036447,7]
[423127392,1779870646000,-255.127716,0.00036447,7]
[423127413,1779870646000,-151.0,0.000365,7]
[423127398,1779870646000,-500.0,0.00036499,120]
[423127401,1779870646000,-500.0,0.00036499,7]
[423127419,1779870646000,-243.854168,0.000365,7]
[423127403,1779870646000,-240.40731498,0.00036499,120]
[423127409,1779870646000,-154.033326,0.000365,7]
[423127410,1779870646000,-151.0,0.000365,7]
[423127405,1779870646000,-6181.8416187,0.000365,2]
[423127407,1779870646000,-204765.6565975,0.000365,2]
[423127406,1779870646000,-919203.4976391,0.000365,2]
[423127408,1779870646000,-3209.2429529,0.000365,2]
[423127415,1779870646000,-151.0,0.000365,7]
[423127414,1779870646000,-151.0,0.000365,7]
[423127421,1779870646000,-151.0,0.000365,7]
[423127416,1779870646000,-151.0,0.000365,7]
[423127422,1779870646000,-151.0,0.000365,7]
[423127391,1779870646000,-255.127716,0.00036447,7]
[423127404,1779870646000,-192.51812992,0.000365,31]
[423127388,1779870646000,-151.0,0.00036447,7]
[423127364,1779870646000,-338.672048,0.00036447,7]
[423127399,1779870646000,-500.0,0.00036499,7]
[423127363,1779870646000,-338.672048,0.00036447,7]
[423127361,1779870646000,-151.0,0.00036447,7]
[423127362,1779870646000,-164.764743,0.00036447,7]
[423127366,1779870646000,-338.672048,0.00036447,7]
[423127365,1779870646000,-338.672048,0.00036447,7]
[423127373,1779870646000,-151.0,0.00036447,7]
[423127374,1779870646000,-642.668548,0.00036447,7]
[423127368,1779870646000,-642.668548,0.00036447,7]
[423127367,1779870646000,-151.0,0.00036447,7]
[423127371,1779870646000,-290.08099,0.00036447,7]
[423127372,1779870646000,-642.668548,0.00036447,7]
[423127369,1779870646000,-642.668548,0.00036447,7]
[423127370,1779870646000,-151.0,0.00036447,7]
[423127375,1779870646000,-151.0,0.00036447,7]
[423127378,1779870646000,-243.235936,0.00036447,7]
[423127379,1779870646000,-289.863686,0.00036447,7]
[423127377,1779870646000,-151.0,0.00036447,7]
[423127382,1779870646000,-289.863686,0.00036447,7]
[423127384,1779870646000,-445.890192,0.00036447,7]
[423127386,1779870646000,-445.890192,0.00036447,7]
[423127381,1779870646000,-289.863686,0.00036447,7]
[423127383,1779870646000,-175.243662,0.00036447,7]
[423127376,1779870646000,-151.0,0.00036447,7]
[423127385,1779870646000,-445.890192,0.00036447,7]
[423127380,1779870646000,-289.863686,0.00036447,7]
[423127387,1779870646000,-445.890192,0.00036447,7]
[423127389,1779870646000,-151.0,0.00036447,7]
[423127390,1779870646000,-255.127716,0.00036447,7]
[423127417,1779870646000,-243.854168,0.000365,7]
[423127420,1779870646000,-243.854168,0.000365,7]
[423127424,1779870646000,-151.0,0.000365,7]
[423127454,1779870646000,-300.0,0.00036506,31]
[423127457,1779870646000,-500.0,0.00036545,120]
[423127451,1779870646000,-255.127716,0.000365,7]
[423127459,1779870646000,-644.43373396,0.00036546,120]
[423127456,1779870646000,-1000.0,0.00036536,10]
[423127455,1779870646000,-180.9146437,0.00036508,2]
[423127458,1779870646000,-246.16741806,0.00036545,7]
[423127462,1779870646000,-151.0,0.00036546,30]
[423127473,1779870646000,-151.0,0.00036546,30]
[423127463,1779870646000,-151.0,0.00036546,30]
[423127464,1779870646000,-156.587,0.00036546,30]
[423127466,1779870646000,-1000.0,0.00036546,30]
[423127470,1779870646000,-1000.0,0.00036546,30]
[423127465,1779870646000,-156.587,0.00036546,30]
[423127468,1779870646000,-152.0,0.00036546,30]
[423127467,1779870646000,-162.380719,0.00036546,30]
[423127469,1779870646000,-162.380719,0.00036546,30]
[423127471,1779870646000,-151.0,0.00036546,30]
[423127472,1779870646000,-168.3888056,0.00036546,30]
[423127474,1779870646000,-297.32167773,0.00036546,30]
[423127476,1779870646000,-152.0,0.00036546,30]
[423127478,1779870646000,-171.59967328,0.00036546,30]
[423127477,1779870646000,-500.0,0.00036546,30]
[423127481,1779870646000,-152.0,0.00036546,30]
[423127479,1779870646000,-156.587,0.00036546,30]
[423127418,1779870646000,-243.854168,0.000365,7]
[423127475,1779870646000,-1000.0,0.00036546,30]
[423127460,1779870646000,-500.0,0.00036546,2]
[423127453,1779870646000,-151.0,0.000365,7]
[423127480,1779870646000,-156.587,0.00036546,30]
[423127450,1779870646000,-255.127716,0.000365,7]
[423127461,1779870646000,-500.0,0.00036546,2]
[423127426,1779870646000,-338.672048,0.000365,7]
[423127427,1779870646000,-338.672048,0.000365,7]
[423127425,1779870646000,-338.672048,0.000365,7]
[423127436,1779870646000,-151.0,0.000365,7]
[423127434,1779870646000,-151.0,0.000365,7]
[423127430,1779870646000,-642.668548,0.000365,7]
[423127432,1779870646000,-151.0,0.000365,7]
[423127429,1779870646000,-151.0,0.000365,7]
[423127433,1779870646000,-642.668548,0.000365,7]
[423127431,1779870646000,-642.668548,0.000365,7]
[423127435,1779870646000,-642.668548,0.000365,7]
[423127428,1779870646000,-338.672048,0.000365,7]
[423127423,1779870646000,-8193.07846143,0.000365,10]
[423127438,1779870646000,-151.0,0.000365,7]
[423127447,1779870646000,-151.0,0.000365,7]
[423127446,1779870646000,-445.890192,0.000365,7]
[423127444,1779870646000,-445.890192,0.000365,7]
[423127441,1779870646000,-289.863686,0.000365,7]
[423127445,1779870646000,-445.890192,0.000365,7]
[423127440,1779870646000,-289.863686,0.000365,7]
[423127452,1779870646000,-255.127716,0.000365,7]
[423127442,1779870646000,-289.863686,0.000365,7]
[423127449,1779870646000,-255.127716,0.000365,7]
[423127439,1779870646000,-289.863686,0.000365,7]
[423127437,1779870646000,-151.0,0.000365,7]
[423127448,1779870646000,-151.0,0.000365,7]
[423127443,1779870646000,-445.890192,0.000365,7]
[423127516,1779870647000,-160.0,0.00036546,30]
[423127519,1779870647000,-500.0,0.00036546,30]
[423127518,1779870647000,-500.0,0.00036546,30]
[423127517,1779870647000,-260.287,0.00036546,30]
[423127513,1779870647000,-151.0,0.00036546,30]
[423127524,1779870647000,-500.0,0.00036546,30]
[423127514,1779870647000,-7142.856,0.00036546,30]
[423127512,1779870647000,-151.0,0.00036546,30]
[423127523,1779870647000,-557.5788265,0.00036546,30]
[423127515,1779870647000,-642.94,0.00036546,30]
[423127509,1779870647000,-200.0,0.00036546,30]
[423127531,1779870647000,-151.0,0.00036546,30]
[423127522,1779870647000,-559.19188,0.00036546,30]
[423127521,1779870647000,-156.587,0.00036546,30]
[423127525,1779870647000,-1000.0,0.00036546,30]
[423127527,1779870647000,-200.0,0.00036546,30]
[423127526,1779870647000,-174.61919141,0.00036546,30]
[423127529,1779870647000,-174.61919141,0.00036546,30]
[423127533,1779870647000,-7407.141672,0.00036546,30]
[423127528,1779870647000,-152.0,0.00036546,30]
[423127532,1779870647000,-151.0,0.00036546,30]
[423127530,1779870647000,-537.6845,0.00036546,30]
[423127534,1779870647000,-666.72878,0.00036546,30]
[423127505,1779870647000,-1000.0,0.00036546,30]
[423127520,1779870647000,-518.5,0.00036546,30]
[423127507,1779870647000,-152.0,0.00036546,30]
[423127490,1779870647000,-200.0,0.00036546,30]
[423127501,1779870647000,-500.0,0.00036546,30]
[423127535,1779870647000,-160.0,0.00036546,30]
[423127482,1779870647000,-200.0,0.00036546,30]
[423127484,1779870647000,-1000.0,0.00036546,30]
[423127483,1779870647000,-151.0,0.00036546,30]
[423127485,1779870647000,-520.0,0.00036546,30]
[423127486,1779870647000,-1000.0,0.00036546,30]
[423127487,1779870647000,-518.5,0.00036546,30]
[423127499,1779870647000,-160.0,0.00036546,30]
[423127488,1779870647000,-500.0,0.00036546,30]
[423127489,1779870647000,-152.0,0.00036546,30]
[423127491,1779870647000,-162.380719,0.00036546,30]
[423127493,1779870647000,-162.380719,0.00036546,30]
[423127494,1779870647000,-251.0,0.00036546,30]
[423127492,1779870647000,-151.0,0.00036546,30]
[423127495,1779870647000,-151.0,0.00036546,30]
[423127496,1779870647000,-6888.0,0.00036546,30]
[423127498,1779870647000,-500.0,0.00036546,30]
[423127497,1779870647000,-500.0,0.00036546,30]
[423127500,1779870647000,-620.0,0.00036546,30]
[423127503,1779870647000,-539.24,0.00036546,30]
[423127502,1779870647000,-151.0,0.00036546,30]
[423127504,1779870647000,-500.0,0.00036546,30]
[423127506,1779870647000,-537.6845,0.00036546,30]
[423127510,1779870647000,-168.3888056,0.00036546,30]
[423127511,1779870647000,-518.5,0.00036546,30]
[423127508,1779870647000,-168.3888056,0.00036546,30]
[423127537,1779870647000,-500.0,0.00036546,30]
[423127594,1779870647000,-298.00835152,0.00036546,30]
[423127539,1779870647000,-170.32008282,0.00036546,30]
[423127569,1779870647000,-174.61919141,0.00036546,30]
[423127571,1779870647000,-615.17166543,0.00036546,30]
[423127575,1779870647000,-194.96924333,0.00036546,30]
[423127568,1779870647000,-716.97946141,0.00036546,30]
[423127566,1779870647000,-187.78006524,0.00036546,30]
[423127572,1779870647000,-1013.02436037,0.00036546,30]
[423127577,1779870647000,-419.74552907,0.00036546,30]
[423127587,1779870647000,-500.0,0.00036546,30]
[423127578,1779870647000,-500.0,0.00036546,30]
[423127576,1779870647000,-151.0,0.00036546,30]
[423127580,1779870647000,-181.08010149,0.00036546,30]
[423127573,1779870647000,-200.0,0.00036546,30]
[423127584,1779870647000,-500.0,0.00036546,30]
[423127585,1779870647000,-500.0,0.00036546,30]
[423127583,1779870647000,-158.92943034,0.00036546,30]
[423127582,1779870647000,-198.66569933,0.00036546,30]
[423127586,1779870647000,-187.78006524,0.00036546,30]
[423127588,1779870647000,-194.72792766,0.00036546,30]
[423127590,1779870647000,-500.0,0.00036546,30]
[423127593,1779870647000,-500.0,0.00036546,30]
[423127592,1779870647000,-500.0,0.00036546,30]
[423127591,1779870647000,-201.93286098,0.00036546,30]
[423127589,1779870647000,-500.0,0.00036546,30]
[423127538,1779870647000,-544.48822506,0.00036546,30]
[423127581,1779870647000,-203.4454062,0.00036546,30]
[423127570,1779870647000,-500.0,0.00036546,30]
[423127579,1779870647000,-500.0,0.00036546,30]
[423127565,1779870647000,-500.0,0.00036546,30]
[423127574,1779870647000,-187.78006524,0.00036546,30]
[423127536,1779870647000,-275.07479905,0.00036546,30]
[423127541,1779870647000,-578.20924308,0.00036546,30]
[423127542,1779870647000,-1000.0,0.00036546,30]
[423127551,1779870647000,-379.05011561,0.00036546,30]
[423127540,1779870647000,-162.380719,0.00036546,30]
[423127543,1779870647000,-359.16411204,0.00036546,30]
[423127544,1779870647000,-200.0,0.00036546,30]
[423127547,1779870647000,-181.08010149,0.00036546,30]
[423127545,1779870647000,-152.0,0.00036546,30]
[423127546,1779870647000,-500.0,0.00036546,30]
[423127549,1779870647000,-151.0,0.00036546,30]
[423127550,1779870647000,-4270.57712429,0.00036546,30]
[423127548,1779870647000,-151.0,0.00036546,30]
[423127555,1779870647000,-168.3888056,0.00036546,30]
[423127564,1779870647000,-151.0,0.00036546,30]
[423127559,1779870647000,-200.0,0.00036546,30]
[423127560,1779870647000,-156.43962677,0.00036546,30]
[423127561,1779870647000,-165.2528065,0.00036546,30]
[423127557,1779870647000,-1000.0,0.00036546,30]
[423127567,1779870647000,-1000.0,0.00036546,30]
[423127553,1779870647000,-168.85974183,0.00036546,30]
[423127558,1779870647000,-181.08010149,0.00036546,30]
[423127554,1779870647000,-500.0,0.00036546,30]
[423127552,1779870647000,-691.39774486,0.00036546,30]
[423127556,1779870647000,-599.60298507,0.00036546,30]
[423127636,1779870648000,-285.488,0.000366,2]
[423127635,1779870648000,-151.0,0.00036582,7]
[423127632,1779870648000,-243.854168,0.00036582,7]
[423127634,1779870648000,-186.478084,0.00036582,7]
[423127633,1779870648000,-151.0,0.00036582,7]
[423127628,1779870648000,-151.0,0.00036582,7]
[423127629,1779870648000,-243.854168,0.00036582,7]
[423127626,1779870648000,-151.0,0.00036582,7]
[423127638,1779870648000,-773.0,0.000366,2]
[423127637,1779870648000,-1225.0,0.000366,2]
[423127631,1779870648000,-243.854168,0.00036582,7]
[423127630,1779870648000,-243.854168,0.00036582,7]
[423127642,1779870648000,-338.672048,0.00036618,7]
[423127661,1779870648000,-445.890188,0.00036618,7]
[423127639,1779870648000,-300.0,0.00036617,10]
[423127641,1779870648000,-338.672048,0.00036618,7]
[423127647,1779870648000,-151.0,0.00036618,7]
[423127645,1779870648000,-642.668548,0.00036618,7]
[423127648,1779870648000,-642.668548,0.00036618,7]
[423127644,1779870648000,-151.0,0.00036618,7]
[423127649,1779870648000,-151.0,0.00036618,7]
[423127646,1779870648000,-642.668548,0.00036618,7]
[423127640,1779870648000,-338.672048,0.00036618,7]
[423127651,1779870648000,-151.0,0.00036618,7]
[423127650,1779870648000,-642.668546,0.00036618,7]
[423127653,1779870648000,-151.0,0.00036618,7]
[423127627,1779870648000,-151.0,0.00036582,7]
[423127643,1779870648000,-338.672056,0.00036618,7]
[423127620,1779870648000,-170.6342324,0.00036547,2]
[423127597,1779870648000,-500.0,0.00036546,30]
[423127619,1779870648000,-500.0,0.00036547,120]
[423127599,1779870648000,-500.0,0.00036546,30]
[423127596,1779870648000,-500.0,0.00036546,30]
[423127662,1779870648000,-154.364669,0.00036622,7]
[423127600,1779870648000,-500.0,0.00036546,30]
[423127595,1779870648000,-500.0,0.00036546,30]
[423127598,1779870648000,-500.0,0.00036546,30]
[423127602,1779870648000,-500.0,0.00036546,30]
[423127604,1779870648000,-500.0,0.00036546,30]
[423127612,1779870648000,-500.0,0.00036546,30]
[423127603,1779870648000,-500.0,0.00036546,30]
[423127605,1779870648000,-500.0,0.00036546,30]
[423127613,1779870648000,-500.0,0.00036546,30]
[423127601,1779870648000,-500.0,0.00036546,30]
[423127625,1779870648000,-151.0,0.00036582,7]
[423127608,1779870648000,-500.0,0.00036546,30]
[423127609,1779870648000,-500.0,0.00036546,30]
[423127607,1779870648000,-500.0,0.00036546,30]
[423127610,1779870648000,-500.0,0.00036546,30]
[423127611,1779870648000,-500.0,0.00036546,30]
[423127615,1779870648000,-500.0,0.00036546,30]
[423127614,1779870648000,-500.0,0.00036546,30]
[423127616,1779870648000,-500.0,0.00036546,30]
[423127624,1779870648000,-151.0,0.00036548,7]
[423127622,1779870648000,-500.0,0.00036548,30]
[423127621,1779870648000,-204.2741242,0.00036547,31]
[423127617,1779870648000,-200.0,0.00036547,2]
[423127618,1779870648000,-500.0,0.00036547,120]
[423127623,1779870648000,-500.0,0.00036548,30]
[423127606,1779870648000,-500.0,0.00036546,30]
[423127655,1779870648000,-289.863686,0.00036618,7]
[423127654,1779870648000,-289.863686,0.00036618,7]
[423127718,1779870648000,-152.0,0.00037989,7]
[423127691,1779870648000,-300.0,0.00037355,10]
[423127692,1779870648000,-666.0,0.00037355,30]
[423127693,1779870648000,-300.0,0.00037355,10]
[423127694,1779870648000,-560577.50430198,0.00037356,2]
[423127695,1779870648000,-151.0,0.00037356,7]
[423127700,1779870648000,-441.09647137,0.00037558,93]
[423127702,1779870648000,-300.0,0.00037599,10]
[423127701,1779870648000,-441.09647137,0.00037558,93]
[423127696,1779870648000,-265.54741549,0.00037434,10]
[423127697,1779870648000,-1532.22063,0.00037435,2]
[423127699,1779870648000,-150.0,0.00037524,120]
[423127703,1779870648000,-300.0,0.00037599,10]
[423127705,1779870648000,-200.0,0.00037599,10]
[423127688,1779870648000,-300.0,0.00037355,10]
[423127704,1779870648000,-666.0,0.00037599,30]
[423127706,1779870648000,-56141.0,0.000376,30]
[423127708,1779870648000,-150.0,0.00037785,120]
[423127712,1779870648000,-300.0,0.00037872,10]
[423127711,1779870648000,-300.0,0.00037872,10]
[423127713,1779870648000,-666.0,0.00037872,30]
[423127714,1779870648000,-395.5,0.000379,120]
[423127710,1779870648000,-824.15255245,0.00037835,2]
[423127709,1779870648000,-189.54,0.00037817,2]
[423127715,1779870648000,-152.0,0.00037913,7]
[423127663,1779870648000,-255.127716,0.00036622,7]
[423127717,1779870648000,-159.0,0.00037932,5]
[423127719,1779870648000,-152.0,0.00037989,7]
[423127716,1779870648000,-152.0,0.00037913,7]
[423127707,1779870648000,-200.0,0.00037654,2]
[423127687,1779870648000,-300.0,0.00037354,10]
[423127698,1779870648000,-152.18,0.00037443,60]
[423127689,1779870648000,-666.0,0.00037355,30]
[423127652,1779870648000,-151.0,0.00036618,7]
[423127656,1779870648000,-289.863686,0.00036618,7]
[423127690,1779870648000,-300.0,0.00037355,10]
[423127664,1779870648000,-255.127716,0.00036622,7]
[423127660,1779870648000,-445.890192,0.00036618,7]
[423127657,1779870648000,-289.863686,0.00036618,7]
[423127658,1779870648000,-445.890192,0.00036618,7]
[423127665,1779870648000,-255.127716,0.00036622,7]
[423127666,1779870648000,-255.12772,0.00036622,7]
[423127667,1779870648000,-466479.4961,0.00036622,30]
[423127671,1779870648000,-247.554,0.00036634,2]
[423127668,1779870648000,-300.0,0.00036624,10]
[423127670,1779870648000,-300.0,0.00036633,10]
[423127669,1779870648000,-1250.0,0.00036625,10]
[423127672,1779870648000,-194.815,0.00036634,2]
[423127659,1779870648000,-445.890192,0.00036618,7]
[423127673,1779870648000,-250.0,0.00036634,2]
[423127674,1779870648000,-247.523,0.00036634,2]
[423127679,1779870648000,-200.0,0.00036912,2]
[423127685,1779870648000,-234.88954037,0.00037353,2]
[423127684,1779870648000,-368.11463466,0.00037353,2]
[423127683,1779870648000,-824.15255245,0.00037339,2]
[423127680,1779870648000,-154.0,0.00036979,5]
[423127686,1779870648000,-938.61860332,0.00037353,2]
[423127681,1779870648000,-500.0,0.00037066,2]
[423127678,1779870648000,-824.15255245,0.00036843,2]
[423127677,1779870648000,-152.81,0.00036712,60]
[423127676,1779870648000,-245.485,0.00036634,2]
[423127675,1779870648000,-151.0,0.00036634,2]
[423127682,1779870648000,-200.0,0.00037282,2]
[423127757,1779870649000,-4336.64,0.000383,2]
[423127765,1779870649000,-295.076573,0.00038356,30]
[423127754,1779870649000,-300.0,0.00038299,10]
[423127758,1779870649000,-824.15255245,0.0003833,2]
[423127755,1779870649000,-666.0,0.00038299,30]
[423127747,1779870649000,-500.0,0.00038255,2]
[423127749,1779870649000,-233.72,0.00038255,2]
[423127750,1779870649000,-156.0,0.00038256,5]
[423127752,1779870649000,-218.19,0.00038276,60]
[423127756,1779870649000,-4336.64,0.000383,2]
[423127759,1779870649000,-300.0,0.00038355,10]
[423127760,1779870649000,-300.0,0.00038355,10]
[423127777,1779870649000,-151.0,0.00038356,30]
[423127762,1779870649000,-154.36,0.00038356,60]
[423127763,1779870649000,-204.012865,0.00038356,30]
[423127764,1779870649000,-151.0,0.00038356,30]
[423127766,1779870649000,-295.076573,0.00038356,30]
[423127769,1779870649000,-295.076573,0.00038356,30]
[423127768,1779870649000,-295.076573,0.00038356,30]
[423127770,1779870649000,-295.076573,0.00038356,30]
[423127776,1779870649000,-295.076573,0.00038356,30]
[423127775,1779870649000,-295.076573,0.00038356,30]
[423127767,1779870649000,-295.076573,0.00038356,30]
[423127778,1779870649000,-151.0,0.00038356,30]
[423127742,1779870649000,-500.0,0.00038255,2]
[423127761,1779870649000,-426.14391834,0.00038355,30]
[423127753,1779870649000,-300.0,0.00038299,10]
[423127772,1779870649000,-295.076573,0.00038356,30]
[423127746,1779870649000,-500.0,0.00038255,2]
[423127726,1779870649000,-152.0,0.00038137,7]
[423127725,1779870649000,-641.87,0.000381,7]
[423127720,1779870649000,-378.35721627,0.00037999,2]
[423127723,1779870649000,-152.0,0.00038004,2]
[423127728,1779870649000,-300.0,0.00038153,10]
[423127721,1779870649000,-434.0857,0.00038,120]
[423127727,1779870649000,-152.0,0.00038137,7]
[423127722,1779870649000,-151.0,0.00038,120]
[423127730,1779870649000,-666.0,0.00038153,30]
[423127740,1779870649000,-500.0,0.00038255,30]
[423127741,1779870649000,-500.0,0.00038255,2]
[423127729,1779870649000,-300.0,0.00038153,10]
[423127735,1779870649000,-4336.64,0.000382,2]
[423127739,1779870649000,-500.0,0.00038255,30]
[423127736,1779870649000,-300.0,0.00038254,10]
[423127733,1779870649000,-152.0,0.00038186,7]
[423127731,1779870649000,-12468.8684886,0.00038154,2]
[423127732,1779870649000,-204.41050424,0.00038156,2]
[423127738,1779870649000,-666.0,0.00038254,30]
[423127734,1779870649000,-152.0,0.00038186,7]
[423127737,1779870649000,-300.0,0.00038254,10]
[423127743,1779870649000,-500.0,0.00038255,2]
[423127745,1779870649000,-500.0,0.00038255,2]
[423127744,1779870649000,-500.0,0.00038255,2]
[423127748,1779870649000,-500.0,0.00038255,2]
[423127751,1779870649000,-166.75,0.0003826,2]
[423127771,1779870649000,-295.076573,0.00038356,30]
[423127724,1779870649000,-152.0,0.0003806,7]
[423127774,1779870649000,-295.076573,0.00038356,30]
[423127809,1779870649000,-151.0,0.00038356,30]
[423127815,1779870649000,-151.0,0.00038356,30]
[423127818,1779870649000,-151.0,0.00038356,30]
[423127810,1779870649000,-151.0,0.00038356,30]
[423127811,1779870649000,-151.0,0.00038356,30]
[423127812,1779870649000,-151.0,0.00038356,30]
[423127817,1779870649000,-151.0,0.00038356,30]
[423127816,1779870649000,-151.0,0.00038356,30]
[423127813,1779870649000,-151.0,0.00038356,30]
[423127814,1779870649000,-151.0,0.00038356,30]
[423127819,1779870649000,-151.0,0.00038356,30]
[423127822,1779870649000,-151.0,0.00038356,30]
[423127824,1779870649000,-185.150468,0.00038356,30]
[423127825,1779870649000,-151.0,0.00038356,30]
[423127820,1779870649000,-151.0,0.00038356,30]
[423127826,1779870649000,-206.692238,0.00038356,30]
[423127829,1779870649000,-218.415127,0.00038356,30]
[423127830,1779870649000,-218.415127,0.00038356,30]
[423127823,1779870649000,-151.0,0.00038356,30]
[423127827,1779870649000,-151.0,0.00038356,30]
[423127828,1779870649000,-151.0,0.00038356,30]
[423127832,1779870649000,-218.415127,0.00038356,30]
[423127833,1779870649000,-218.415127,0.00038356,30]
[423127831,1779870649000,-218.415127,0.00038356,30]
[423127773,1779870649000,-295.076573,0.00038356,30]
[423127808,1779870649000,-151.0,0.00038356,30]
[423127807,1779870649000,-151.0,0.00038356,30]
[423127821,1779870649000,-151.0,0.00038356,30]
[423127805,1779870649000,-151.0,0.00038356,30]
[423127780,1779870649000,-151.0,0.00038356,30]
[423127806,1779870649000,-151.0,0.00038356,30]
[423127790,1779870649000,-151.0,0.00038356,30]
[423127792,1779870649000,-230.8649905,0.00038356,2]
[423127779,1779870649000,-151.0,0.00038356,30]
[423127791,1779870649000,-267.931801,0.00038356,30]
[423127783,1779870649000,-151.0,0.00038356,30]
[423127781,1779870649000,-151.0,0.00038356,30]
[423127789,1779870649000,-151.0,0.00038356,30]
[423127788,1779870649000,-151.0,0.00038356,30]
[423127785,1779870649000,-151.0,0.00038356,30]
[423127784,1779870649000,-151.0,0.00038356,30]
[423127786,1779870649000,-151.0,0.00038356,30]
[423127782,1779870649000,-151.0,0.00038356,30]
[423127799,1779870649000,-151.0,0.00038356,30]
[423127793,1779870649000,-151.0,0.00038356,30]
[423127796,1779870649000,-151.0,0.00038356,30]
[423127795,1779870649000,-151.0,0.00038356,30]
[423127797,1779870649000,-151.0,0.00038356,30]
[423127804,1779870649000,-151.0,0.00038356,30]
[423127794,1779870649000,-178.84402325,0.00038356,30]
[423127798,1779870649000,-151.0,0.00038356,30]
[423127800,1779870649000,-151.0,0.00038356,30]
[423127801,1779870649000,-216.88901,0.00038356,30]
[423127802,1779870649000,-151.0,0.00038356,30]
[423127787,1779870649000,-151.0,0.00038356,30]
[423127803,1779870649000,-151.0,0.00038356,30]
[423127875,1779870650000,-151.0,0.00038356,30]
[423127867,1779870650000,-151.0,0.00038356,30]
[423127873,1779870650000,-151.0,0.00038356,30]
[423127871,1779870650000,-151.0,0.00038356,30]
[423127870,1779870650000,-151.0,0.00038356,30]
[423127865,1779870650000,-151.0,0.00038356,30]
[423127868,1779870650000,-294.971136,0.00038356,30]
[423127876,1779870650000,-151.0,0.00038356,30]
[423127869,1779870650000,-151.0,0.00038356,30]
[423127879,1779870650000,-151.0,0.00038356,30]
[423127880,1779870650000,-151.0,0.00038356,30]